bitfinex-derivatives/quotes_ETHF0:USTF0_20250616
["timestamp","ask_amount","ask_price","bid_price","bid_amount"]
[1750052055748,0.77215405,2609.1,2608.9,2.05695]
[1750052056052,0.00574405,2609.1,2608.9,1.2905]
[1750052056256,0.00574405,2609.1,2609.0,0.76642]
[1750052056560,0.00574405,2609.1,2609.0,2.09092]
[1750052056852,0.00574405,2609.1,2609.0,7.09092]
[1750052057052,1.91532,2610.0,2609.0,6.3245]
[1750052057248,3.2078,2609.8,2609.1,3.2078]
[1750052057445,0.76636,2609.2,2609.0,1.3245]
[1750052057649,3.2078,2609.4,2609.0,1.3245]
[1750052057857,0.76639,2609.1,2609.0,1.3245]
[1750052058058,0.76645,2608.9,2608.8,0.00574405]
[1750052059254,0.00574405,2609.3,2608.8,5.00574405]
[1750052059459,0.00574405,2609.3,2608.9,2.0783]
[1750052059752,0.77210405,2609.3,2608.9,2.0783]
[1750052059957,0.00574405,2609.3,2608.9,7.05357543]
[1750052060152,3.2078,2609.2,2608.8,0.07311811]
[1750052060358,3.97425,2608.9,2608.8,0.07311811]
[1750052060951,3.2078,2608.9,2608.8,0.07311811]
[1750052061150,0.76645,2608.9,2608.8,0.07311811]
[1750052061863,3.2078,2609.1,2608.8,0.07311811]
[1750052062054,3.97421,2609.1,2608.8,0.83958811]
[1750052062454,3.2078,2609.1,2608.9,0.76642]
[1750052062655,3.2078,2609.2,2608.8,0.83958811]
[1750052062856,0.00574405,2609.3,2608.8,3.28091811]
[1750052063053,0.00574405,2609.3,2609.2,0.76636]
[1750052063755,3.21354405,2609.3,2608.8,3.28091811]
[1750052063954,0.76644,2608.9,2608.8,0.07311811]
[1750052064149,5.2902,2609.2,2608.8,0.07311811]
[1750052064356,3.2078,2609.2,2608.9,0.76643]
[1750052064555,0.76644,2608.9,2608.8,0.07311811]
[1750052064961,0.00574405,2609.3,2608.8,0.07311811]
[1750052065157,0.76644,2608.9,2608.8,0.07311811]
[1750052065358,3.97424,2608.9,2608.8,0.07311811]
[1750052065763,0.76644,2608.9,2608.8,0.07311811]
[1750052066659,0.00574405,2609.3,2608.8,5.07311811]
[1750052066859,0.76637,2609.2,2609.1,0.76639]
[1750052067063,0.77208405,2609.3,2609.1,0.76639]
[1750052067252,0.00574405,2609.3,2609.0,3.2078]
[1750052067456,0.00574405,2609.3,2608.8,0.07311811]
[1750052067656,0.76645,2608.9,2608.8,0.07311811]
[1750052068362,2.29264405,2609.3,2608.8,0.83957811]
[1750052068561,0.76645,2608.9,2608.8,0.83957811]
[1750052068865,0.76645,2608.9,2608.8,0.83958811]
[1750052069063,0.76645,2608.9,2608.8,0.07311811]
[1750052070163,2.93865,2608.9,2608.8,0.07311811]
[1750052070959,18.91024,2609.0,2608.8,0.07311811]
[1750052071159,0.76645,2608.9,2608.8,0.07311811]
[1750052071767,3.05735,2608.9,2608.8,0.07311811]
[1750052072462,0.76645,2608.9,2608.8,0.07311811]
[1750052072764,15.70245,2608.9,2608.8,0.07311811]
[1750052073067,17.99335,2608.9,2608.8,0.07311811]
[1750052073658,0.76662,2608.3,2608.2,1.10026107]
[1750052073865,0.76662,2608.3,2608.2,1.15142594]
[1750052074465,3.2078,2608.8,2608.3,0.76662]
[1750052074668,3.2078,2608.8,2608.4,4.3598934]
[1750052074866,0.76644,2609.0,2608.8,0.76644]
[1750052075072,0.76641,2609.1,2608.9,1.1520934]
[1750052075276,0.76641,2609.1,2609.0,1.1520934]
[1750052075576,0.76638,2609.2,2609.0,1.9184934]
[1750052075872,0.00574405,2609.3,2609.2,0.76636]
[1750052076078,0.77207405,2609.3,2609.2,1.1520934]
[1750052076969,0.77207405,2609.3,2609.2,0.76636]
[1750052076970,0.00574405,2609.3,2609.2,0.76636]
[1750052077169,3.2078,2609.8,2609.4,0.76629]
[1750052077475,0.76626,2609.6,2609.5,1.15379702]
[1750052077674,3.97406,2609.6,2609.5,1.15379702]
[1750052077868,3.97406,2609.6,2609.1,1.11526597]
[1750052078170,3.97416,2609.2,2609.1,1.11526597]
[1750052078469,3.97416,2609.2,2609.1,2.27041799]
[1750052078773,3.21354405,2609.6,2609.1,2.27041799]
[1750052078967,3.21354405,2609.6,2609.2,1.15515202]
[1750052079167,0.7663,2609.4,2609.3,1.15515202]
[1750052079975,0.00574405,2609.6,2609.3,1.15515202]
[1750052080172,0.76629,2609.5,2609.4,1.15515202]
[1750052080477,0.77200405,2609.6,2609.4,2.27041799]
[1750052080771,0.00574405,2609.6,2609.5,1.15515202]
[1750052080980,0.00574405,2609.6,2609.5,48.13588948]
[1750052081168,0.00574405,2609.6,2609.5,45.92922202]
[1750052081475,0.00574405,2609.6,2609.5,48.17972202]
[1750052082176,0.00574405,2609.6,2609.5,44.97192202]
[1750052082363,0.00574405,2609.6,2609.5,51.45922769]
[1750052082567,0.76617,2609.9,2609.6,0.76623]
[1750052082770,14.219,2610.2,2609.8,1.11543593]
[1750052082970,0.76612,2610.0,2609.9,1.15515202]
[1750052083375,6.91535,2610.0,2609.5,1.11543593]
[1750052083582,1.91568,2609.5,2609.0,1.12117998]
[1750052083870,0.7662,2609.8,2609.3,1.11543593]
[1750052084076,0.76627,2609.5,2609.3,1.11543593]
[1750052084277,0.7663,2609.4,2609.3,3.26043593]
[1750052084475,3.2078,2609.8,2609.3,3.26043593]
[1750052084677,1.91539,2609.9,2609.4,1.11543593]
[1750052084871,0.7663,2609.5,2609.4,1.11543593]
[1750052085073,0.7663,2609.4,2609.3,1.11543593]
[1750052085376,0.76632,2609.4,2609.2,1.11543593]
[1750052085578,0.7663,2609.4,2609.3,3.26043593]
[1750052085773,0.7663,2609.4,2609.3,44.06043593]
[1750052086577,0.7663,2609.4,2609.3,42.945]
[1750052086772,0.7663,2609.4,2609.3,3.26043593]
[1750052087074,19.6176,2609.9,2609.4,0.76628]
[1750052087380,0.76627,2609.5,2609.3,4.02674593]
[1750052087674,0.76628,2609.5,2609.4,0.7663]
[1750052087974,21.53303,2609.9,2609.3,3.26043593]
[1750052088179,21.53303,2609.9,2609.3,4.02674593]
[1750052088379,0.7663,2609.4,2609.3,4.02674593]
[1750052088779,0.7663,2609.4,2609.3,3.26043593]
[1750052088983,19.6176,2609.9,2609.3,3.26043593]
[1750052089174,19.6176,2609.9,2609.3,4.02674593]
[1750052089373,21.53304,2609.9,2609.3,4.02674593]
[1750052089582,0.76629,2609.5,2609.3,2.91131]
[1750052089974,0.7663,2609.4,2609.3,2.91131]
[1750052090474,0.7663,2609.4,2609.3,2.145]
[1750052090875,0.76633,2609.3,2609.2,5.08959593]
[1750052091479,0.76636,2609.2,2609.1,1.11543593]
[1750052091783,0.76631,2609.4,2609.3,0.7663]
[1750052091973,0.76631,2609.4,2609.3,0.83367406]
[1750052092377,0.76631,2609.4,2609.3,3.17727406]
[1750052092675,13.85,2609.7,2609.3,2.41097406]
[1750052092879,13.85,2609.7,2609.3,3.52640999]
[1750052093079,0.76629,2609.5,2609.4,0.76629]
[1750052093279,0.76629,2609.5,2609.4,3.12449]
[1750052093682,0.76629,2609.5,2609.4,2.3582]
[1750052093878,0.7663,2609.4,2609.3,0.06737406]
[1750052094481,3.9741,2609.4,2609.3,0.06737406]
[1750052095376,0.76639,2609.1,2609.0,0.00574405]
[1750052096980,0.76639,2609.1,2608.5,5.566]
[1750052096981,0.76652,2608.7,2608.5,3.97436]
[1750052097280,0.76649,2608.8,2608.6,1.91563189]
[1750052097483,1.9159,2609.2,2608.5,3.2078]
[1750052097687,13.489,2609.1,2608.6,3.42637608]
[1750052097985,0.76649,2608.8,2608.6,3.04967405]
[1750052098181,0.7665,2608.7,2608.6,2.28314405]
[1750052098485,0.7665,2608.7,2608.6,4.19870602]
[1750052098681,0.7665,2608.7,2608.6,1.15477602]
[1750052098878,0.7665,2608.7,2608.6,0.00574405]
[1750052099781,3.9743,2608.7,2608.6,0.00574405]
[1750052099985,1.91634,2608.6,2608.1,3.2078]
[1750052100182,0.76662,2608.3,2608.2,1.14943555]
[1750052100389,0.76665,2608.2,2608.1,3.2078]
[1750052100779,13.132,2608.4,2607.8,3.2078]
[1750052100780,1.91662,2608.3,2607.8,3.2078]
[1750052100975,0.76674,2607.9,2607.8,44.0078]
[1750052101176,0.76674,2607.9,2607.8,4.35769603]
[1750052101581,0.76674,2607.9,2607.8,3.2078]
[1750052102578,1.91667,2608.2,2607.3,1.11543593]
[1750052102579,0.76686,2607.5,2607.4,3.2078]
[1750052103580,0.76684,2607.6,2607.4,3.2078]
[1750052103779,2.3505,2607.9,2607.4,3.2078]
[1750052103982,0.00574405,2608.3,2607.7,3.2078]
[1750052104189,3.79669097,2609.5,2608.2,4.97527543]
[1750052104190,3.2078,2608.9,2608.2,4.97527543]
[1750052104381,0.76656,2608.6,2608.4,0.76659]
[1750052104684,0.76661,2608.4,2608.2,0.76665]
[1750052104882,1.91611,2609.0,2608.1,3.2078]
[1750052104883,0.76658,2608.5,2608.1,3.2078]
[1750052105079,0.76659,2608.5,2608.2,3.38073572]
[1750052105280,0.76665,2608.2,2608.1,3.2078]
[1750052105481,0.00574405,2608.6,2608.2,0.76663]
[1750052105693,0.76662,2608.4,2608.2,0.76663]
[1750052106186,0.76665,2608.2,2608.1,3.2078]
[1750052106586,0.76665,2608.3,2608.0,0.00574405]
[1750052106887,0.76668,2608.1,2608.0,0.00574405]
[1750052107388,0.76668,2608.1,2608.0,40.80574405]
[1750052107583,0.76667,2608.2,2608.0,41.57243405]
[1750052107888,0.76668,2608.1,2608.0,40.80574405]
[1750052108486,0.00574405,2608.6,2608.0,50.78101948]
[1750052108687,0.00574405,2608.6,2608.5,3.97436]
[1750052112987,0.00574405,2608.6,2608.5,5.11890306]
[1750052113287,0.00574405,2608.6,2608.5,7.37800306]
[1750052113790,3.2078,2609.5,2608.7,1.91623]
[1750052113989,0.76638,2609.2,2609.1,0.76638]
[1750052114199,0.76639,2609.1,2609.0,0.76639]
[1750052115387,0.00574405,2609.3,2609.2,0.76636]
[1750052115388,0.77209405,2609.3,2609.2,0.76636]
[1750052115589,0.00574405,2609.3,2608.8,5.12395]
[1750052115895,0.76637,2609.2,2609.1,0.76636]
[1750052116097,0.00574405,2609.3,2608.8,3.2078]
[1750052116296,0.76647,2608.9,2608.7,0.76648]
[1750052116597,0.76649,2608.8,2608.7,0.76649]
[1750052116988,0.7665,2608.7,2608.6,0.76651]
[1750052117188,0.76649,2608.8,2608.7,0.76649]
[1750052117393,0.7665,2608.7,2608.6,0.76653]
[1750052117590,0.76649,2608.8,2608.7,0.7665]
[1750052118496,0.76653,2608.6,2608.5,3.97434]
[1750052118699,3.2078,2609.0,2608.7,0.76649]
[1750052118888,3.2078,2609.0,2608.5,3.2078]
[1750052118889,5.6169,2609.0,2608.5,3.2078]
[1750052119095,0.00574405,2609.3,2608.9,4.51419724]
[1750052119397,0.7664,2609.1,2609.0,0.7664]
[1750052119591,0.76638,2609.2,2609.1,0.76638]
[1750052119792,0.77207405,2609.3,2609.2,0.76636]
[1750052119988,0.00574405,2609.3,2609.2,0.76636]
[1750052120292,2.4091,2609.8,2609.2,13.86790881]
[1750052120293,12.446,2609.8,2609.2,13.86790881]
[1750052120493,0.76628,2609.5,2609.4,0.7663]
[1750052120996,0.76625,2609.6,2609.5,0.76627]
[1750052121197,0.76628,2609.5,2609.4,0.76629]
[1750052121600,0.76628,2609.5,2609.4,0.7663]
[1750052121897,0.76625,2609.6,2609.5,0.76627]
[1750052122100,0.00574405,2609.7,2609.6,0.76624]
[1750052122307,0.00574405,2609.7,2609.3,2.2705]
[1750052122494,0.76626,2609.6,2609.4,0.76628]
[1750052122689,0.00574405,2609.7,2609.3,2.2705]
[1750052122898,0.76627,2609.5,2609.4,0.76628]
[1750052123101,0.76625,2609.6,2609.5,0.76625]
[1750052123402,0.76626,2609.6,2609.5,0.76627]
[1750052123599,0.7663,2609.4,2609.3,2.2705]
[1750052124106,0.7663,2609.4,2609.3,3.41702941]
[1750052124401,0.00574405,2609.7,2609.2,3.21354405]
[1750052124602,0.76633,2609.3,2609.2,0.00574405]
[1750052124801,0.76647,2608.8,2608.7,0.06737406]
[1750052124997,3.97427,2608.8,2608.7,0.06737406]
[1750052125898,3.2078,2608.8,2608.7,0.06737406]
[1750052126103,3.97427,2608.8,2608.7,0.06737406]
[1750052126498,5.5231,2609.2,2608.7,0.06737406]
[1750052126803,0.76647,2608.8,2608.7,0.06737406]
[1750052127005,0.76643,2609.0,2608.8,0.76646]
[1750052127202,12.105,2609.1,2608.7,0.06737406]
[1750052127403,0.76646,2608.9,2608.7,0.06737406]
[1750052127604,0.76646,2608.9,2608.7,0.83387406]
[1750052128000,0.76647,2608.8,2608.7,0.06737406]
[1750052128196,0.76647,2608.8,2608.7,0.83387406]
[1750052128500,3.2078,2609.2,2608.7,0.06737406]
[1750052128701,0.76647,2608.9,2608.7,0.83386406]
[1750052129008,3.2078,2609.2,2608.7,0.06737406]
[1750052129212,0.76637,2609.2,2609.0,3.2078]
[1750052129412,3.2078,2609.2,2608.8,0.76647]
[1750052129713,0.76647,2608.8,2608.7,0.06737406]
[1750052129905,0.76647,2608.8,2608.7,1.21375317]
[1750052130109,5.12373,2609.2,2608.7,1.98045994]
[1750052130309,0.76647,2608.8,2608.7,0.06737406]
[1750052131314,5.76647,2608.8,2608.7,0.06737406]
[1750052131516,0.76653,2608.6,2608.5,0.00574405]
[1750052131706,15.74333,2608.6,2608.5,0.00574405]
[1750052132413,0.76653,2608.6,2608.5,0.00574405]
[1750052132619,15.74333,2608.6,2608.5,0.00574405]
[1750052133413,0.76648,2608.8,2608.6,0.76652]
[1750052133616,0.76653,2608.6,2608.5,0.00574405]
[1750052133915,13.6861,2609.0,2608.6,0.76652]
[1750052133916,0.76648,2608.8,2608.6,0.76652]
[1750052134107,3.2078,2609.0,2608.5,0.00574405]
[1750052134305,11.77,2608.9,2608.6,1.14882311]
[1750052134512,0.76653,2608.6,2608.5,0.00574405]
[1750052134718,11.77,2608.9,2608.5,1.98852593]
[1750052134719,0.76652,2608.7,2608.5,1.98852593]
[1750052134919,0.76649,2608.8,2608.6,1.91538782]
[1750052135214,0.76649,2608.8,2608.6,0.76652]
[1750052135414,17.3952,2608.9,2608.5,0.83966811]
[1750052135616,3.97433,2608.6,2608.5,0.07311811]
[1750052135817,0.76652,2608.7,2608.5,0.07311811]
[1750052136012,0.00574405,2609.7,2608.6,4.98508639]
[1750052136214,0.00574405,2609.7,2609.6,3.97404]
[1750052136415,0.00574405,2609.7,2609.6,3.2078]
[1750052136416,0.77195405,2609.7,2609.6,3.2078]
[1750052136610,0.00574405,2609.7,2609.6,5.4276]
[1750052137217,0.00574405,2609.7,2609.6,6.19384]
[1750052137722,0.00574405,2609.7,2609.6,5.4276]
[1750052138117,0.00574405,2609.7,2609.6,6.19384]
[1750052138517,28.14482186,2611.0,2609.6,15.41268639]
[1750052138716,11.49860487,2610.8,2610.5,3.2078]
[1750052138925,0.76595,2610.6,2610.5,3.2078]
[1750052139117,0.0766078,2610.7,2610.5,3.2078]
[1750052139521,0.0766078,2610.7,2610.6,0.76595]
[1750052140624,0.0766078,2610.7,2610.5,3.97376]
[1750052140920,0.0766078,2610.7,2610.6,2.2595]
[1750052141317,0.0766078,2610.7,2610.6,3.02545]
[1750052142618,0.0766078,2610.7,2610.6,2.2595]
[1750052142819,0.76595,2610.6,2610.5,3.2078]
[1750052144012,0.76593,2610.7,2610.5,3.2078]
[1750052144421,0.7659,2610.8,2610.5,3.2078]
[1750052144824,0.00574405,2610.9,2610.5,3.2078]
[1750052145021,0.77160405,2610.9,2610.8,3.2078]
[1750052145333,7.38786405,2610.9,2610.3,3.97957405]
[1750052145624,0.76601,2610.4,2610.3,3.21354405]
[1750052146032,4.18006405,2610.9,2610.3,3.21354405]
[1750052146217,2.26534405,2610.9,2610.3,3.21354405]
[1750052146417,0.76601,2610.4,2610.3,3.21354405]
[1750052147021,2.26534405,2610.9,2610.4,0.76601]
[1750052147229,0.76595,2610.6,2610.4,2.291]
[1750052147423,0.76594,2610.7,2610.4,3.05699]
[1750052147623,0.76594,2610.7,2610.6,3.2078]
[1750052148523,0.76591,2610.8,2610.6,3.2078]
[1750052148728,0.00574405,2610.9,2610.6,3.97374]
[1750052149025,0.00574405,2610.9,2610.6,3.2078]
[1750052149026,0.76592,2610.7,2610.6,3.2078]
[1750052150231,0.76591,2610.8,2610.6,3.97373]
[1750052150533,0.76592,2610.7,2610.6,3.2078]
[1750052150825,0.00574405,2610.9,2610.6,3.27517406]
[1750052151026,0.26166339,2611.8,2610.9,1.91465]
[1750052151229,3.2078,2612.2,2611.6,4.50850538]
[1750052151531,0.76549,2612.2,2612.1,3.2078]
[1750052151831,11.17636629,2612.6,2612.1,3.2078]
[1750052152030,11.17636629,2612.6,2612.5,7.71630538]
[1750052152031,4.05e-06,2612.6,2612.5,7.71630538]
[1750052152327,0.7653,2612.8,2612.5,9.61339572]
[1750052152630,0.7653,2612.8,2612.6,40.8]
[1750052152631,0.07654623,2612.8,2612.6,40.8]
[1750052152929,2.2392,2614.2,2612.6,40.8]
[1750052152930,2.2392,2614.2,2612.6,43.1795]
[1750052153135,0.00574405,2613.7,2613.4,3.2078]
[1750052153333,0.8416028,2613.6,2613.4,3.2078]
[1750052153527,0.07652573,2613.5,2613.4,3.2078]
[1750052153728,0.07652573,2613.5,2613.4,3.97293]
[1750052154028,0.07652573,2613.5,2613.4,6.29683]
[1750052154228,14.2868,2614.7,2613.4,10.5317]
[1750052154421,14.2868,2614.7,2613.8,3.97281]
[1750052154626,0.07649353,2614.6,2614.1,3.2078]
[1750052154932,0.07649353,2614.6,2614.4,3.2078]
[1750052155126,0.07649353,2614.6,2614.5,2.3239]
[1750052155527,0.07649353,2614.6,2614.4,3.2078]
[1750052156026,0.07649353,2614.6,2614.5,2.3239]
[1750052156225,0.84127353,2614.6,2614.5,2.3239]
[1750052156633,0.76496,2614.0,2613.7,3.2078]
[1750052156936,11.15549353,2614.6,2613.7,3.2078]
[1750052157130,11.15549353,2614.6,2614.0,3.2078]
[1750052157330,0.76486,2614.4,2614.1,2.4414]
[1750052157731,0.76489,2614.2,2614.1,2.4414]
[1750052158130,3.21160322,2614.8,2614.1,2.4414]
[1750052158335,0.76489,2614.2,2614.1,2.4414]
[1750052158630,0.76498,2613.9,2613.8,40.8]
[1750052158835,0.76501,2613.8,2613.7,2.4414]
[1750052159036,0.76504,2613.7,2613.6,3.2078]
[1750052159734,10.745,2614.3,2613.6,8.2078]
[1750052160035,3.2078,2615.3,2614.2,3.2078]
[1750052160234,0.7647,2614.9,2614.7,3.2078]
[1750052160426,0.76852322,2614.8,2614.7,3.2078]
[1750052161238,0.00380322,2614.8,2614.7,3.2078]
[1750052161438,0.00380322,2614.8,2614.7,3.97255]
[1750052161738,0.00380322,2614.8,2614.7,3.2078]
[1750052161932,0.76852322,2614.8,2614.7,3.2078]
[1750052162132,5.00380322,2614.8,2614.0,3.2078]
[1750052162331,0.76492,2614.1,2614.0,3.2078]
[1750052162548,0.00380322,2614.8,2614.0,48.97287948]
[1750052162728,0.00380322,2614.8,2614.1,2.4179]
[1750052163034,0.76852322,2614.8,2614.5,0.76479]
[1750052163242,3.2078,2615.3,2614.6,5.6257]
[1750052163543,3.2078,2615.3,2615.2,0.7646]
[1750052164039,3.2078,2615.3,2615.1,3.18252]
[1750052164241,3.2078,2615.3,2615.2,3.1825]
[1750052164435,0.76456,2615.4,2615.2,2.4179]
[1750052164736,0.76457,2615.3,2615.2,2.4179]
[1750052164938,0.76456,2615.4,2615.2,2.4179]
[1750052165243,0.76454,2615.4,2615.2,43.2179]
[1750052165635,3.2078,2615.6,2615.3,2.225]
[1750052165840,0.76454,2615.4,2615.3,2.225]
[1750052167037,3.2078,2615.6,2615.4,0.76453]
[1750052167342,0.76453,2615.5,2615.3,2.225]
[1750052167741,0.76454,2615.4,2615.3,2.225]
[1750052168437,0.76457,2615.3,2615.2,40.8]
[1750052168640,6.61833557,2615.8,2615.2,45.76507948]
[1750052168838,3.2078,2615.9,2615.3,2.3022]
[1750052169030,0.76453,2615.5,2615.3,2.3022]
[1750052169236,3.2078,2615.9,2615.3,2.3022]
[1750052169436,3.2078,2615.6,2615.3,2.3022]
[1750052169636,0.76447,2615.7,2615.5,0.7645]
[1750052169833,3.2078,2615.9,2615.3,2.3022]
[1750052170039,3.2078,2615.9,2615.8,0.76442]
[1750052170440,3.97221,2615.9,2615.7,0.76443]
[1750052170647,3.2078,2615.9,2615.8,2.3022]
[1750052170947,3.9722,2615.9,2615.8,2.3022]
[1750052171246,3.2078,2615.9,2615.2,44.0078]
[1750052171444,3.97221,2615.9,2615.7,0.76444]
[1750052171637,3.9722,2615.9,2615.8,2.3763]
[1750052172240,0.7644,2615.9,2615.8,2.3763]
[1750052172441,3.2078,2616.2,2615.2,44.0078]
[1750052172637,3.2078,2616.2,2615.7,0.76445]
[1750052172638,0.7644,2615.9,2615.7,0.76445]
[1750052172835,3.2078,2616.2,2615.2,45.91926]
[1750052172836,3.2078,2616.2,2615.8,2.3763]
[1750052173038,0.76438,2616.0,2615.8,3.14071]
[1750052173244,0.76439,2616.0,2615.8,3.14071]
[1750052173549,0.76436,2616.1,2615.9,0.7644]
[1750052173743,3.2078,2616.2,2615.9,0.7644]
[1750052173949,0.76437,2616.0,2615.9,0.7644]
[1750052174149,0.76435,2616.1,2615.9,0.7644]
[1750052174448,0.76437,2616.0,2615.8,3.14071]
[1750052174650,0.76435,2616.1,2615.9,0.7644]
[1750052174849,3.2078,2616.2,2615.9,0.7644]
[1750052175050,3.2078,2616.2,2616.0,3.02956]
[1750052175246,3.2078,2616.2,2616.1,0.76434]
[1750052175640,3.2078,2616.2,2616.0,2.2652]
[1750052175843,3.2078,2616.2,2615.4,1.91131]
[1750052176044,3.2078,2616.2,2616.1,0.76434]
[1750052176250,0.76438,2616.0,2615.8,0.76442]
[1750052176447,0.7644,2615.9,2615.8,2.2652]
[1750052176649,0.76426,2616.4,2615.8,4.17622]
[1750052176855,3.2078,2616.2,2615.8,2.2652]
[1750052177147,3.2078,2616.5,2615.8,2.2652]
[1750052177339,3.2078,2616.5,2615.9,40.8]
[1750052177544,3.2078,2616.5,2616.2,0.7643]
[1750052177746,3.2078,2616.5,2616.1,0.76433]
[1750052177747,0.76432,2616.2,2616.1,0.76433]
[1750052178058,3.2078,2616.5,2615.9,40.8]
[1750052178059,0.7643,2616.3,2616.2,0.7643]
[1750052178255,0.7643,2616.3,2616.1,0.76432]
[1750052178555,0.76432,2616.2,2616.1,0.76433]
[1750052179049,1.91069,2616.4,2615.9,40.8]
[1750052179243,3.2078,2616.5,2615.9,40.8]
[1750052179443,3.97205,2616.5,2616.0,2.307]
[1750052179648,3.97203,2616.5,2616.4,0.76425]
[1750052179845,0.76423,2616.5,2616.4,0.76425]
[1750052180044,3.2078,2616.9,2616.0,7.27207948]
[1750052180246,0.76416,2616.8,2616.7,0.76416]
[1750052180755,0.76413,2616.8,2616.6,0.76419]
[1750052180950,0.76413,2616.8,2616.6,3.19609]
[1750052181146,0.76392,2617.6,2616.7,1.91038]
[1750052181456,0.76401,2617.3,2617.0,3.97186]
[1750052181648,0.76401,2617.3,2616.7,2.4319]
[1750052181649,13.6188,2617.6,2616.7,5.6397]
[1750052181957,0.76419,2616.6,2616.5,0.00573296]
[1750052182249,5.11742,2617.8,2616.5,4.97081244]
[1750052182448,10.411,2618.5,2617.6,0.76389]
[1750052182449,2.3149,2617.9,2617.6,0.76389]
[1750052182653,6.9852,2618.4,2617.5,3.2078]
[1750052182851,6.9852,2618.4,2617.9,0.7638]
[1750052183151,0.76371,2618.3,2618.1,3.2078]
[1750052183351,12.7259,2618.7,2618.1,3.2078]
[1750052183550,13.6188,2618.9,2618.1,3.2078]
[1750052183746,0.76367,2618.4,2618.1,3.2078]
[1750052183950,0.76366,2618.5,2618.1,3.97155]
[1750052184249,0.76372,2618.2,2618.1,3.2078]
[1750052184454,0.76396,2617.4,2617.3,5.6177]
[1750052184655,3.97164,2617.9,2617.3,3.97177]
[1750052184961,3.97162,2617.9,2617.3,3.97177]
[1750052185261,0.76383,2617.9,2617.4,3.17385]
[1750052185473,0.005696,2617.9,2617.8,3.2078]
[1750052186154,0.769506,2617.9,2617.8,3.2078]
[1750052186466,0.005696,2617.9,2617.6,4.95181379]
[1750052186656,0.005696,2617.9,2617.8,8.92345379]
[1750052186850,3.2078,2618.8,2618.0,0.76375]
[1750052186851,0.76367,2618.4,2618.0,0.76375]
[1750052187052,0.76367,2618.4,2618.2,3.2078]
[1750052187254,3.2078,2618.4,2617.8,3.2078]
[1750052187453,2.449,2618.3,2617.5,5.6388]
[1750052187853,0.76387,2617.7,2617.6,40.8]
[1750052188249,3.2078,2618.4,2617.5,3.97171]
[1750052188458,3.2078,2618.5,2617.8,3.2078]
[1750052188659,0.76381,2617.9,2617.8,3.2078]
[1750052188861,0.76393,2617.5,2617.4,3.21353296]
[1750052189461,0.76407,2617.1,2616.9,3.2078]
[1750052189654,2.3763,2617.5,2616.9,3.2078]
[1750052189854,0.76407,2617.1,2616.9,5.5877]
[1750052190054,0.76394,2617.5,2616.9,10.53951379]
[1750052190246,3.2078,2617.6,2616.9,6.35179]
[1750052190454,0.00573296,2617.5,2617.0,0.00573296]
[1750052190762,0.00573296,2617.5,2617.4,0.76396]
[1750052191058,0.00573296,2617.5,2617.4,5.71577379]
[1750052191255,2.4524,2618.1,2617.8,0.76382]
[1750052191256,0.76377,2618.1,2617.8,0.76382]
[1750052191456,0.76375,2618.2,2617.9,0.76381]
[1750052191657,13.6138,2618.5,2617.8,3.2078]
[1750052191852,3.2078,2618.1,2617.4,3.2078]
[1750052192154,0.7639,2617.6,2617.4,3.2078]
[1750052192360,2.3763,2618.0,2617.4,5.5877]
[1750052192754,0.76388,2617.7,2617.5,0.76392]
[1750052192959,2.3763,2618.0,2617.4,3.2078]
[1750052193155,0.76393,2617.5,2617.4,3.2078]
[1750052193359,3.2078,2618.2,2617.4,3.2078]
[1750052193555,2.3105,2618.4,2617.8,0.76382]
[1750052193859,10.405,2618.2,2617.7,3.2078]
[1750052194161,10.405,2618.2,2617.8,2.3667]
[1750052194357,10.405,2618.2,2617.7,3.2078]
[1750052194358,0.76384,2617.8,2617.7,3.2078]
[1750052194661,0.76384,2617.9,2617.7,3.97165]
[1750052194965,0.76384,2617.8,2617.7,3.2078]
[1750052196263,0.76389,2617.7,2617.4,3.27517406]
[1750052196459,0.7639,2617.6,2617.4,4.03911406]
[1750052196864,0.76391,2617.6,2617.4,3.27517406]
[1750052197164,10.404,2617.9,2617.4,3.27517406]
[1750052197363,0.76391,2617.6,2617.4,3.27517406]
[1750052197561,0.76388,2617.7,2617.4,3.27517406]
[1750052197757,12.6519,2617.9,2617.4,3.27517406]
[1750052197758,0.76385,2617.8,2617.4,3.27517406]
[1750052198058,12.6519,2617.9,2617.4,3.27517406]
[1750052198059,10.404,2617.9,2617.5,2.2755]
[1750052198463,0.76391,2617.6,2617.4,3.27517406]
[1750052198662,10.404,2617.9,2617.4,3.27517406]
[1750052198865,3.2078,2618.2,2617.4,3.27517406]
[1750052199066,0.76382,2617.9,2617.6,0.76388]
[1750052199265,0.76382,2617.9,2617.6,0.7639]
[1750052199466,10.404,2618.1,2617.5,2.4329]
[1750052199665,2.429,2618.0,2617.4,3.27517406]
[1750052199865,0.76392,2617.6,2617.4,3.27517406]
[1750052200165,2.429,2618.0,2617.4,3.27517406]
[1750052200472,0.76393,2617.5,2617.4,3.27517406]
[1750052200964,2.429,2618.0,2617.5,0.76393]
[1750052201161,10.404,2617.9,2617.5,0.76393]
[1750052201365,0.76391,2617.6,2617.4,4.03911406]
[1750052201558,0.76393,2617.5,2617.4,3.27517406]
[1750052203263,23.113,2618.7,2617.4,14.34095111]
[1750052203457,0.76375,2618.1,2618.0,3.2078]
[1750052203659,0.7639,2617.6,2617.5,3.2078]
[1750052203870,0.7639,2617.6,2617.5,4.32165023]
[1750052204163,0.7639,2617.6,2617.5,3.2078]
[1750052204367,0.76393,2617.5,2617.4,0.06737406]
[1750052204664,11.06193,2617.5,2617.4,0.06737406]
[1750052205769,0.76399,2617.3,2617.2,3.2078]
[1750052206270,0.76405,2617.1,2617.0,0.00573296]
[1750052208668,3.2078,2618.4,2617.4,0.06737406]
[1750052208863,0.76382,2617.9,2617.8,3.2078]
[1750052209169,0.7639,2617.6,2617.5,2.3833]